fUSD/lending_fUSD_20251206
["ID","MTS","AMOUNT","RATE_DAILY","PERIOD"]
[396596116,1765065069645,-500.0,0.00016986,2]
[396596117,1765065069654,-568.48812078,0.00016986,2]
[396596118,1765065069664,-2030.02,0.00016986,2]
[396596119,1765065069673,-500.0,0.00016986,2]
[396596120,1765065069686,-274.873322,0.00016986,2]
[396596121,1765065069695,-913.31,0.00016986,2]
[396596122,1765065069704,-274.873322,0.00016986,2]
[396596123,1765065069712,-274.873322,0.00016986,2]
[396596124,1765065069723,-274.873322,0.00016986,2]
[396596125,1765065069737,-500.0,0.00016986,2]
[396596126,1765065069747,-500.0,0.00016986,2]
[396596127,1765065069756,-500.0,0.00016986,2]
[396596128,1765065069767,-750.11,0.00016986,2]
[396596129,1765065069776,-500.0,0.00016986,2]
[396596130,1765065069786,-550.65,0.00016986,2]
[396596131,1765065069795,-500.0,0.00016986,2]
[396596132,1765065069804,-500.0,0.00016986,2]
[396596133,1765065069814,-1789.91,0.00016986,2]
[396596134,1765065069824,-781.21,0.00016986,2]
[396596135,1765065069834,-500.0,0.00016986,2]
[396596136,1765065069844,-500.0,0.00016986,2]
[396596137,1765065069853,-2720.5,0.00016986,2]
[396596138,1765065069862,-506.31,0.00016986,2]
[396596139,1765065069872,-151.0,0.00016986,2]
[396596140,1765065069883,-500.0,0.00016986,2]
[396596141,1765065069893,-512.47,0.00016986,2]
[396596142,1765065069904,-151.0,0.00016986,2]
[396596143,1765065069914,-500.0,0.00016986,2]
[396596144,1765065069925,-675.96,0.00016986,2]
[396596145,1765065069935,-151.0,0.00016986,2]
[396596146,1765065069945,-151.0,0.00016986,2]
[396596147,1765065069955,-500.0,0.00016986,2]
[396596148,1765065069966,-500.0,0.00016986,2]
[396596149,1765065069979,-500.0,0.00016986,2]
[396596150,1765065069992,-500.0,0.00016986,2]
[396596151,1765065070004,-151.0,0.00016986,2]
[396596152,1765065070014,-514.95821344,0.00016986,2]
[396596153,1765065070023,-151.0,0.00016986,2]
[396596154,1765065070033,-500.0,0.00016986,2]
[396596155,1765065070042,-2308.2,0.00016986,2]
[396596156,1765065070052,-637.57,0.00016986,2]
[396596157,1765065070062,-1002.83,0.00016986,2]
[396596158,1765065070074,-500.0,0.00016986,2]
[396596159,1765065070084,-1878.33,0.00016986,2]
[396596160,1765065070096,-1973.13,0.00016986,2]
[396596161,1765065070106,-500.0,0.00016986,2]
[396596162,1765065070117,-500.0,0.00016986,2]
[396596163,1765065070128,-500.0,0.00016986,2]
[396596164,1765065070137,-985.782157,0.00016986,2]
[396596165,1765065070147,-823.65,0.00016986,2]
[396596166,1765065070157,-985.782157,0.00016986,2]
[396596167,1765065070166,-500.0,0.00016986,2]
[396596168,1765065070176,-500.0,0.00016986,2]
[396596169,1765065070186,-985.782157,0.00016986,2]
[396596170,1765065070196,-500.0,0.00016986,2]
[396596171,1765065070207,-500.0,0.00016986,2]
[396596172,1765065070219,-985.782157,0.00016986,2]
[396596173,1765065070230,-500.0,0.00016986,2]
[396596174,1765065070240,-569.55,0.00016986,2]
[396596175,1765065070251,-500.0,0.00016986,2]
[396596176,1765065070261,-672.04,0.00016986,2]
[396596177,1765065070271,-500.0,0.00016986,2]
[396596178,1765065070282,-300.0,0.00016986,2]
[396596179,1765065070293,-1935.84,0.00016986,2]
[396596180,1765065070304,-500.0,0.00016986,2]
[396596181,1765065070316,-151.0,0.00016986,2]
[396596182,1765065070326,-670.39,0.00016986,2]
[396596183,1765065070336,-500.0,0.00016986,2]
[396596184,1765065070345,-151.0,0.00016986,2]
[396596185,1765065070355,-151.0,0.00016986,2]
[396596186,1765065070365,-500.0,0.00016986,2]
[396596187,1765065070375,-500.0,0.00016986,2]
[396596188,1765065070385,-500.0,0.00016986,2]
[396596189,1765065070395,-500.0,0.00016986,2]
[396596190,1765065070406,-1843.85,0.00016986,2]
[396596191,1765065070415,-2386.35,0.00016986,2]
[396596192,1765065070433,-500.0,0.00016986,2]
[396596193,1765065070451,-500.0,0.00016986,2]
[396596194,1765065070461,-500.0,0.00016986,2]
[396596195,1765065070471,-165.544672,0.00016986,2]
[396596196,1765065070481,-151.0,0.00016986,2]
[396596197,1765065070491,-500.0,0.00016986,2]
[396596198,1765065070502,-165.544672,0.00016986,2]
[396596199,1765065070512,-165.544672,0.00016986,2]
[396596200,1765065070522,-1942.49,0.00016986,2]
[396596201,1765065070532,-516.43,0.00016986,2]
[396596202,1765065070542,-165.544672,0.00016986,2]
[396596203,1765065070552,-2496.6,0.00016986,2]
[396596204,1765065070562,-4215.91,0.00016986,2]
[396596205,1765065070572,-500.0,0.00016986,2]
[396596206,1765065070581,-2419.53,0.00016986,2]
[396596207,1765065070591,-500.0,0.00016986,2]
[396596208,1765065070601,-500.0,0.00016986,2]
[396596209,1765065070611,-500.0,0.00016986,2]
[396596210,1765065070622,-2351.15,0.00016986,2]
[396596211,1765065070632,-610.17,0.00016986,2]
[396596212,1765065070643,-578.23,0.00016986,2]
[396596213,1765065070653,-500.0,0.00016986,2]
[396596214,1765065070663,-482.57816728,0.00016986,2]
[396596215,1765065070676,-500.0,0.00016986,2]
[396596216,1765065070686,-500.0,0.00016986,2]
[396596217,1765065070696,-2031.41,0.00016986,2]
[396596218,1765065070707,-505.59,0.00016986,2]
[396596219,1765065070717,-500.0,0.00016986,2]
[396596220,1765065070729,-500.0,0.00016986,2]
[396596221,1765065070740,-500.0,0.00016986,2]
[396596222,1765065070750,-500.0,0.00016986,2]
[396596223,1765065070760,-500.0,0.00016986,2]
[396596224,1765065070771,-684.97,0.00016986,2]
[396596225,1765065070782,-151.0,0.00016986,2]
[396596226,1765065070792,-414.07776848,0.00016986,2]
[396596227,1765065070802,-151.0,0.00016986,2]
[396596228,1765065070812,-151.0,0.00016986,2]
[396596229,1765065070822,-151.0,0.00016986,2]
[396596230,1765065070831,-500.0,0.00016986,2]
[396596231,1765065070841,-500.0,0.00016986,2]
[396596232,1765065070851,-233.836463,0.00016986,2]
[396596233,1765065070860,-196.911356,0.00016986,2]
[396596234,1765065070870,-500.0,0.00016986,2]
[396596235,1765065070881,-1027.61,0.00016986,2]
[396596236,1765065070891,-500.0,0.00016986,2]
[396596237,1765065070901,-151.0,0.00016986,2]
[396596238,1765065070912,-1925.47,0.00016986,2]
[396596239,1765065070923,-500.0,0.00016986,2]
[396596240,1765065070932,-500.0,0.00016986,2]
[396596241,1765065070942,-1017.31,0.00016986,2]
[396596242,1765065070951,-151.0,0.00016986,2]
[396596243,1765065070961,-151.0,0.00016986,2]
[396596244,1765065070971,-500.0,0.00016986,2]
[396596245,1765065070981,-151.0,0.00016986,2]
[396596246,1765065070990,-500.0,0.00016986,2]
[396596247,1765065071001,-500.0,0.00016986,2]
[396596248,1765065071010,-500.0,0.00016986,2]
[396596249,1765065071020,-500.0,0.00016986,2]
[396596250,1765065071030,-1817.28,0.00016986,2]
[396596251,1765065071039,-221.701919,0.00016986,2]
[396596252,1765065071048,-221.701919,0.00016986,2]
[396596253,1765065071058,-500.0,0.00016986,2]
[396596254,1765065071067,-510.66,0.00016986,2]
[396596255,1765065071077,-500.0,0.00016986,2]
[396596256,1765065071087,-221.701919,0.00016986,2]
[396596257,1765065071096,-603.52030482,0.00016986,2]
[396596258,1765065071106,-620.78391536,0.00016986,2]
[396596259,1765065071116,-221.701919,0.00016986,2]
[396596260,1765065071125,-500.0,0.00016986,2]
[396596261,1765065071135,-597.44,0.00016986,2]
[396596262,1765065071144,-500.0,0.00016986,2]
[396596263,1765065071154,-541.16,0.00016986,2]
[396596264,1765065071163,-500.0,0.00016986,2]
[396596265,1765065071173,-585.71471408,0.00016986,2]
[396596266,1765065071184,-184.1,0.00016986,2]
[396596267,1765065071194,-500.0,0.00016986,2]
[396596268,1765065071203,-1839.25,0.00016986,2]
[396596269,1765065071213,-500.0,0.00016986,2]
[396596270,1765065071223,-500.0,0.00016986,2]
[396596271,1765065071234,-500.0,0.00016986,2]
[396596272,1765065071246,-500.0,0.00016986,2]
[396596273,1765065071256,-301.62858836,0.00016986,2]
[396596274,1765065071267,-517.51932257,0.00016986,2]
[396596275,1765065071279,-2127.53,0.00016986,2]
[396596276,1765065071289,-500.0,0.00016986,2]
[396596277,1765065071300,-2705.8,0.00016986,2]
[396596278,1765065071309,-2233.77,0.00016986,2]
[396596279,1765065071321,-500.0,0.00016986,2]
[396596280,1765065071331,-1509.87,0.00016986,2]
[396596281,1765065071342,-628.14803593,0.00016986,2]
[396596282,1765065071354,-500.0,0.00016986,2]
[396596283,1765065071365,-2103.4,0.00016986,2]
[396596284,1765065071376,-500.0,0.00016986,2]
[396596285,1765065071387,-500.0,0.00016986,2]
[396596286,1765065071398,-1094.13,0.00016986,2]
[396596287,1765065071408,-500.0,0.00016986,2]
[396596288,1765065071418,-500.0,0.00016986,2]
[396596289,1765065071428,-500.0,0.00016986,2]
[396596290,1765065071438,-500.0,0.00016986,2]
[396596291,1765065071448,-199.866157,0.00016986,2]
[396596292,1765065071458,-500.0,0.00016986,2]
[396596293,1765065071467,-500.0,0.00016986,2]
[396596294,1765065071477,-200.39671682,0.00016986,2]
[396596295,1765065071487,-2198.18,0.00016986,2]
[396596296,1765065071496,-199.866157,0.00016986,2]
[396596297,1765065071506,-793.75,0.00016986,2]
[396596298,1765065071516,-199.866157,0.00016986,2]
[396596299,1765065071526,-500.0,0.00016986,2]
[396596300,1765065071536,-199.866157,0.00016986,2]
[396596301,1765065071546,-500.0,0.00016986,2]
[396596302,1765065071556,-500.0,0.00016986,2]
[396596303,1765065071565,-500.0,0.00016986,2]
[396596304,1765065071575,-654.89,0.00016986,2]
[396596305,1765065071585,-500.0,0.00016986,2]
[396596306,1765065071595,-330.793777,0.00016986,2]
[396596307,1765065071604,-151.0,0.00016986,2]
[396596308,1765065071615,-330.793777,0.00016986,2]
[396596309,1765065071626,-2052.9,0.00016986,2]
[396596310,1765065071638,-285.784669,0.00016986,2]
[396596311,1765065071648,-500.0,0.00016986,2]
[396596312,1765065071658,-500.0,0.00016986,2]
[396596313,1765065071667,-330.793777,0.00016986,2]
[396596314,1765065071679,-240.572356,0.00016986,2]
[396596315,1765065071688,-500.0,0.00016986,2]
[396596316,1765065071699,-330.793777,0.00016986,2]
[396596317,1765065071709,-240.572356,0.00016986,2]
[396596318,1765065071723,-500.0,0.00016986,2]
[396596319,1765065071733,-500.0,0.00016986,2]
[396596320,1765065071744,-1154.4,0.00016986,2]
[396596321,1765065071755,-607.1,0.00016986,2]
[396596322,1765065071767,-1975.87,0.00016986,2]
[396596323,1765065071777,-240.572356,0.00016986,2]
[396596324,1765065071788,-670.8,0.00016986,2]
[396596325,1765065071799,-240.572356,0.00016986,2]
[396596326,1765065071811,-500.0,0.00016986,2]
[396596327,1765065071821,-500.0,0.00016986,2]
[396596328,1765065071830,-500.0,0.00016986,2]
[396596329,1765065071840,-500.0,0.00016986,2]
[396596330,1765065071850,-360.27629708,0.00016986,2]
[396596331,1765065071859,-500.0,0.00016986,2]
[396596332,1765065071869,-188.81593586,0.00016986,2]
[396596333,1765065071879,-500.0,0.00016986,2]
[396596334,1765065071889,-500.0,0.00016986,2]
[396596335,1765065071901,-631.80281699,0.00016986,2]
[396596336,1765065071911,-611.9,0.00016986,2]
[396596337,1765065071921,-500.0,0.00016986,2]
[396596338,1765065071931,-500.0,0.00016986,2]
[396596339,1765065071941,-500.0,0.00016986,2]
[396596340,1765065071951,-502.96,0.00016986,2]
[396596341,1765065071962,-500.0,0.00016986,2]
[396596342,1765065071972,-191.16126673,0.00016986,2]
[396596343,1765065071983,-500.0,0.00016986,2]
[396596344,1765065071993,-1877.42,0.00016986,2]
[396596345,1765065072004,-500.0,0.00016986,2]
[396596346,1765065072014,-500.0,0.00016986,2]
[396596347,1765065072025,-782.03,0.00016986,2]
[396596348,1765065072035,-2184.93,0.00016986,2]
[396596349,1765065072045,-1922.01,0.00016986,2]
[396596350,1765065072056,-500.0,0.00016986,2]
[396596351,1765065072067,-554.58,0.00016986,2]
[396596352,1765065072077,-732.91,0.00016986,2]
[396596353,1765065072087,-500.0,0.00016986,2]
[396596354,1765065072097,-151.0,0.00016986,2]
[396596355,1765065072107,-500.0,0.00016986,2]
[396596356,1765065072119,-500.0,0.00016986,2]
[396596357,1765065072129,-500.0,0.00016986,2]
[396596358,1765065072139,-500.0,0.00016986,2]
[396596359,1765065072440,-500.0,0.00016986,2]
[396596360,1765065072451,-1555.65,0.00016986,2]
[396596361,1765065072461,-1823.0,0.00016986,2]
[396596362,1765065072471,-2225.81,0.00016986,2]
[396596363,1765065072481,-1297.51,0.00016986,2]
[396596364,1765065072492,-500.0,0.00016986,2]
[396596365,1765065072501,-500.0,0.00016986,2]
[396596366,1765065072510,-1729.84,0.00016986,2]
[396596367,1765065072520,-500.0,0.00016986,2]
[396596368,1765065072529,-500.0,0.00016986,2]
[396596369,1765065072539,-500.0,0.00016986,2]
[396596370,1765065072549,-506.16,0.00016986,2]
[396596371,1765065072559,-1965.8,0.00016986,2]
[396596372,1765065072569,-500.0,0.00016986,2]
[396596373,1765065072579,-2267.84,0.00016986,2]
[396596374,1765065072588,-500.0,0.00016986,2]
[396596375,1765065072599,-523.84,0.00016986,2]
[396596376,1765065072609,-151.0,0.00016986,2]
[396596377,1765065072619,-151.0,0.00016986,2]
[396596378,1765065072630,-500.0,0.00016986,2]
[396596379,1765065072641,-500.0,0.00016986,2]
[396596380,1765065072650,-151.0,0.00016986,2]
[396596381,1765065072660,-151.0,0.00016986,2]
[396596382,1765065072672,-500.0,0.00016986,2]
[396596383,1765065072686,-151.0,0.00016986,2]
[396596384,1765065072696,-500.0,0.00016986,2]
[396596385,1765065072705,-1091.22,0.00016986,2]
[396596386,1765065072715,-151.0,0.00016986,2]
[396596387,1765065072725,-151.0,0.00016986,2]
[396596388,1765065072735,-500.0,0.00016986,2]
[396596389,1765065072745,-151.0,0.00016986,2]
[396596390,1765065072755,-671.31,0.00016986,2]
[396596391,1765065072764,-151.0,0.00016986,2]
[396596392,1765065072774,-1454.08,0.00016986,2]
[396596393,1765065072784,-151.0,0.00016986,2]
[396596394,1765065072793,-151.0,0.00016986,2]
[396596395,1765065072803,-151.0,0.00016986,2]
[396596396,1765065072812,-151.0,0.00016986,2]
[396596397,1765065072822,-2310.03,0.00016986,2]
[396596398,1765065072831,-1905.67,0.00016986,2]
[396596399,1765065072841,-500.0,0.00016986,2]
[396596400,1765065072851,-500.0,0.00016986,2]
[396596401,1765065072861,-2051.6,0.00016986,2]
[396596402,1765065072870,-2465.22,0.00016986,2]
[396596403,1765065072879,-500.0,0.00016986,2]
[396596404,1765065072889,-7446.73,0.00016986,2]
[396596405,1765065072899,-1805.03,0.00016986,2]
[396596406,1765065072909,-500.0,0.00016986,2]
[396596407,1765065072919,-500.0,0.00016986,2]
[396596408,1765065072928,-500.0,0.00016986,2]
[396596409,1765065072938,-500.0,0.00016986,2]
[396596410,1765065072948,-2049.81,0.00016986,2]
[396596411,1765065072958,-151.0,0.00016986,2]
[396596412,1765065072967,-2488.97,0.00016986,2]
[396596413,1765065072976,-151.0,0.00016986,2]
[396596414,1765065072988,-500.0,0.00016986,2]
[396596415,1765065072998,-2398.22,0.00016986,2]
[396596416,1765065073008,-500.0,0.00016986,2]
[396596417,1765065073018,-259.380436,0.00016986,2]
[396596418,1765065073027,-500.0,0.00016986,2]
[396596419,1765065073037,-500.0,0.00016986,2]
[396596420,1765065073047,-349.5711145,0.00016986,2]
[396596421,1765065073057,-1419.44,0.00016986,2]
[396596422,1765065073067,-2023.24,0.00016986,2]
[396596423,1765065073078,-500.0,0.00016986,2]
[396596424,1765065073090,-1686.66,0.00016986,2]
[396596425,1765065073100,-875.36,0.00016986,2]
[396596426,1765065073110,-585.55,0.00016986,2]
[396596427,1765065073119,-500.0,0.00016986,2]
[396596428,1765065073128,-500.0,0.00016986,2]
[396596429,1765065073140,-2184.11,0.00016986,2]
[396596430,1765065073151,-1322.95,0.00016986,2]
[396596431,1765065073162,-576.75,0.00016986,2]
[396596432,1765065073172,-500.0,0.00016986,2]
[396596433,1765065073183,-500.0,0.00016986,2]
[396596434,1765065073193,-4448.06,0.00016986,2]
[396596435,1765065073205,-2503.1,0.00016986,2]
[396596436,1765065073215,-500.0,0.00016986,2]
[396596437,1765065073224,-500.0,0.00016986,2]
[396596438,1765065073233,-503.69149903,0.00016986,2]
[396596439,1765065073243,-500.0,0.00016986,2]
[396596440,1765065073253,-500.0,0.00016986,2]
[396596441,1765065073263,-500.0,0.00016986,2]
[396596442,1765065073274,-500.0,0.00016986,2]
[396596443,1765065073284,-500.0,0.00016986,2]
[396596444,1765065073294,-2010.37,0.00016986,2]
[396596445,1765065073303,-500.0,0.00016986,2]
[396596446,1765065073313,-500.0,0.00016986,2]
[396596447,1765065073322,-1000.0,0.00016986,2]
[396596448,1765065073331,-500.0,0.00016986,2]
[396596449,1765065073340,-500.0,0.00016986,2]
[396596450,1765065073349,-500.0,0.00016986,2]
[396596451,1765065073359,-500.0,0.00016986,2]
[396596452,1765065073369,-3569.48,0.00016986,2]
[396596453,1765065073381,-493.591863,0.00016986,2]
[396596454,1765065073391,-500.0,0.00016986,2]
[396596455,1765065073401,-500.0,0.00016986,2]
[396596456,1765065073411,-500.0,0.00016986,2]
[396596457,1765065073422,-493.591863,0.00016986,2]
[396596458,1765065073432,-500.0,0.00016986,2]
[396596459,1765065073442,-493.591863,0.00016986,2]
[396596460,1765065073453,-500.0,0.00016986,2]
[396596461,1765065073462,-493.591863,0.00016986,2]
[396596462,1765065073472,-3131.16,0.00016986,2]
[396596463,1765065073481,-500.0,0.00016986,2]
[396596464,1765065073491,-151.0,0.00016986,2]
[396596465,1765065073500,-500.0,0.00016986,2]
[396596466,1765065073510,-493.591863,0.00016986,2]
[396596467,1765065073519,-151.0,0.00016986,2]
[396596468,1765065073530,-493.591863,0.00016986,2]
[396596469,1765065073539,-500.0,0.00016986,2]
[396596470,1765065073548,-493.591863,0.00016986,2]
[396596471,1765065073558,-493.591855,0.00016986,2]
[396596472,1765065073569,-876.33,0.00016986,2]
[396596473,1765065073579,-2453.21,0.00016986,2]
[396596474,1765065073589,-500.0,0.00016986,2]
[396596475,1765065073598,-500.0,0.00016986,2]
[396596476,1765065073607,-1085.04,0.00016986,2]
[396596477,1765065073617,-314.72802331,0.00016986,2]
[396596478,1765065073627,-500.0,0.00016986,2]
[396596479,1765065073636,-428.899887,0.00016986,2]
[396596480,1765065073646,-428.899887,0.00016986,2]
[396596481,1765065073655,-1931.39,0.00016986,2]
[396596482,1765065073665,-500.0,0.00016986,2]
[396596483,1765065073676,-500.0,0.00016986,2]
[396596484,1765065073688,-500.0,0.00016986,2]
[396596485,1765065073698,-428.899887,0.00016986,2]
[396596486,1765065073708,-428.899887,0.00016986,2]
[396596487,1765065073719,-151.0,0.00016986,2]
[396596488,1765065073729,-300.627044,0.00016986,2]
[396596489,1765065073739,-428.899887,0.00016986,2]
[396596490,1765065073749,-500.0,0.00016986,2]
[396596491,1765065073761,-428.899887,0.00016986,2]
[396596492,1765065073771,-2181.94,0.00016986,2]
[396596493,1765065073780,-2238.68,0.00016986,2]
[396596494,1765065073790,-500.0,0.00016986,2]
[396596495,1765065073799,-428.899887,0.00016986,2]
[396596496,1765065073809,-428.899881,0.00016986,2]
[396596497,1765065073819,-500.0,0.00016986,2]
[396596498,1765065073829,-393.80133,0.00016986,2]
[396596499,1765065073839,-393.80133,0.00016986,2]
[396596500,1765065073849,-500.0,0.00016986,2]
[396596501,1765065073859,-393.80133,0.00016986,2]
[396596502,1765065073869,-393.80133,0.00016986,2]
[396596503,1765065073879,-2290.17,0.00016986,2]
[396596504,1765065073888,-500.0,0.00016986,2]
[396596505,1765065073898,-393.80133,0.00016986,2]
[396596506,1765065073908,-393.80133,0.00016986,2]
[396596507,1765065073917,-500.0,0.00016986,2]
[396596508,1765065073928,-151.0,0.00016986,2]
[396596509,1765065073938,-500.0,0.00016986,2]
[396596510,1765065073949,-604.97,0.00016986,2]
[396596511,1765065073959,-393.80133,0.00016986,2]
[396596512,1765065073969,-500.0,0.00016986,2]
[396596513,1765065073979,-393.801334,0.00016986,2]
[396596514,1765065073989,-500.0,0.00016986,2]
[396596515,1765065074000,-569.31,0.00016986,2]
[396596516,1765065074010,-151.0,0.00016986,2]
[396596517,1765065074020,-151.0,0.00016986,2]
[396596518,1765065074029,-500.0,0.00016986,2]
[396596519,1765065074039,-500.0,0.00016986,2]
[396596520,1765065074048,-500.0,0.00016986,2]
[396596521,1765065074058,-2529.66,0.00016986,2]
[396596522,1765065074067,-151.0,0.00016986,2]
[396596523,1765065074077,-270.232592,0.00016986,2]
[396596524,1765065074087,-558.68,0.00016986,2]
[396596525,1765065074096,-500.0,0.00016986,2]
[396596526,1765065074106,-2100.97,0.00016986,2]
[396596527,1765065074115,-550.83,0.00016986,2]
[396596528,1765065074126,-2059.52,0.00016986,2]
[396596529,1765065074136,-500.0,0.00016986,2]
[396596530,1765065074147,-500.0,0.00016986,2]
[396596531,1765065074158,-500.0,0.00016986,2]
[396596532,1765065074168,-500.0,0.00016986,2]
[396596533,1765065074179,-743.82,0.00016986,2]
[396596534,1765065074189,-151.0,0.00016986,2]
[396596535,1765065074200,-151.0,0.00016986,2]
[396596536,1765065074212,-151.0,0.00016986,2]
[396596537,1765065074221,-151.0,0.00016986,2]
[396596538,1765065074232,-500.0,0.00016986,2]
[396596539,1765065074243,-151.0,0.00016986,2]
[396596540,1765065074253,-151.0,0.00016986,2]
[396596541,1765065074265,-651.73,0.00016986,2]
[396596542,1765065074274,-500.0,0.00016986,2]
[396596543,1765065074284,-151.0,0.00016986,2]
[396596544,1765065074294,-151.0,0.00016986,2]
[396596545,1765065074303,-2148.24,0.00016986,2]
[396596546,1765065074313,-500.0,0.00016986,2]
[396596547,1765065074323,-501.39,0.00016986,2]
[396596548,1765065074333,-541.24,0.00016986,2]
[396596549,1765065074342,-500.0,0.00016986,2]
[396596550,1765065074352,-536.6,0.00016986,2]
[396596551,1765065074361,-160.040704,0.00016986,2]
[396596552,1765065074371,-500.0,0.00016986,2]
[396596553,1765065074381,-607.81498451,0.00016986,2]
[396596554,1765065074391,-1668.4,0.00016986,2]
[396596555,1765065074400,-8015.71,0.00016986,2]
[396596556,1765065074409,-500.0,0.00016986,2]
[396596557,1765065074420,-151.0,0.00016986,2]
[396596558,1765065074431,-151.0,0.00016986,2]
[396596559,1765065074441,-2408.97,0.00016986,2]
[396596560,1765065074451,-500.0,0.00016986,2]
[396596561,1765065074461,-1581.93,0.00016986,2]
[396596562,1765065074471,-2351.09,0.00016986,2]
[396596563,1765065074481,-151.0,0.00016986,2]
[396596564,1765065074491,-151.0,0.00016986,2]
[396596565,1765065074502,-1116.71,0.00016986,2]
[396596566,1765065074513,-500.0,0.00016986,2]
[396596567,1765065074524,-500.0,0.00016986,2]
[396596568,1765065074534,-2376.46,0.00016986,2]
[396596569,1765065074543,-500.0,0.00016986,2]
[396596570,1765065074553,-500.0,0.00016986,2]
[396596571,1765065074563,-635.91,0.00016986,2]
[396596572,1765065074573,-2038.16,0.00016986,2]
[396596573,1765065074583,-627.37,0.00016986,2]
[396596574,1765065074593,-573.41,0.00016986,2]
[396596575,1765065074603,-575.52,0.00016986,2]
[396596576,1765065074613,-500.0,0.00016986,2]
[396596577,1765065074623,-500.0,0.00016986,2]
[396596578,1765065074633,-500.0,0.00016986,2]
[396596579,1765065074643,-500.0,0.00016986,2]
[396596580,1765065074653,-500.0,0.00016986,2]
[396596581,1765065074664,-500.0,0.00016986,2]
[396596582,1765065074674,-1303.49,0.00016986,2]
[396596583,1765065074688,-500.0,0.00016986,2]
[396596584,1765065074697,-2297.27,0.00016986,2]
[396596585,1765065074706,-521.13,0.00016986,2]
[396596586,1765065074716,-757.37,0.00016986,2]
[396596587,1765065074726,-151.0,0.00016986,2]
[396596588,1765065074738,-151.0,0.00016986,2]
[396596589,1765065074748,-1793.42,0.00016986,2]
[396596590,1765065074758,-500.0,0.00016986,2]
[396596591,1765065074767,-500.0,0.00016986,2]
[396596592,1765065074776,-2429.86,0.00016986,2]
[396596593,1765065074787,-1277.46,0.00016986,2]
[396596594,1765065074797,-500.0,0.00016986,2]
[396596595,1765065074807,-500.0,0.00016986,2]
[396596596,1765065074888,-2403.68,0.00016986,2]
[396596597,1765065074898,-500.0,0.00016986,2]
[396596598,1765065074908,-500.0,0.00016986,2]
[396596599,1765065074917,-500.0,0.00016986,2]
[396596600,1765065074927,-241.979441,0.00016986,2]
[396596601,1765065074937,-500.0,0.00016986,2]
[396596602,1765065074947,-2421.29,0.00016986,2]
[396596603,1765065074956,-500.0,0.00016986,2]
[396596604,1765065074966,-241.979441,0.00016986,2]
[396596605,1765065074975,-500.0,0.00016986,2]
[396596606,1765065074985,-2075.27,0.00016986,2]
[396596607,1765065074995,-241.979441,0.00016986,2]
[396596608,1765065075007,-500.0,0.00016986,2]
[396596609,1765065075016,-241.979441,0.00016986,2]
[396596610,1765065075025,-500.0,0.00016986,2]
[396596611,1765065075035,-1167.37,0.00016986,2]
[396596612,1765065075045,-500.0,0.00016986,2]
[396596613,1765065075054,-241.979441,0.00016986,2]
[396596614,1765065075063,-500.0,0.00016986,2]
[396596615,1765065075074,-241.979441,0.00016986,2]